[Event "Fagernes GM-A 2019"]
[Site "Fagernes"]
[Date "2019.04.20"]
[Round "8.18"]
[White "Bentsen, Hakon"]
[Black "Lindbol, Aleksander"]
[Result "1-0"]
[ECO "B33"]
[WhiteElo "2155"]
[BlackElo "2139"]
[Annotator "NA"]
[PlyCount "117"]
[EventDate "2019.04.14"]
[EventType "tourn"]
[EventCountry "NOR"]
[SourceTitle "playchess.com"]
[Source "ChessBase"]
[SourceQuality "1"]
[TimeControl "40/7200:3600"]

1. e4 {[%emt 0:00:02]} c5 {[%emt 0:00:13]} 2. Nf3 {[%emt 0:00:10]} Nc6 {[%emt 0:00:16]} 3. d4 {[%emt 0:00:13]} cxd4 {[%emt 0:00:09]} 4. Nxd4 {[%emt 0:00:08]} Nf6 {[%emt 0:00:09]} 5. Nc3 {[%emt 0:00:08]} e5 {[%emt 0:00:07]} 6. Ndb5 {[%emt 0:00:07]} d6 {[%emt 0:00:07]} 7. Bg5 {[%emt 0:00:11]} a6 {[%emt 0:00:08]} 8. Na3 {[%emt 0:00:07]} b5 {[%emt 0:00:06]} 9. Nd5 {[%emt 0:00:12]} Be7 {[%emt 0:00:06]} 10. Bxf6 {[%emt 0:00:10]} Bxf6 {[%emt 0:00:05]} 11. c3 {[%emt 0:00:21]} O-O {[%emt 0:00:48]} 12. Nc2 {[%emt 0:00:14]} Bg5 {[%emt 0:01:31]} 13. a4 {[%emt 0:00:25]} bxa4 {[%emt 0:00:09]} 14. Rxa4 {[%emt 0:00:07]} a5 {[%emt 0:00:10]} 15. Bc4 {[%emt 0:05:24]} Rb8 {[%emt 0:00:51]} 16. Ra2 {[%emt 0:02:40]} g6 {[%emt 0:02:36]} 17. Nce3 {[%emt 0:00:28]} Kh8 {[%emt 0:03:19]} 18. O-O {[%emt 0:02:50]} f5 {[%emt 0:07:19]} 19. Qa4 {[%emt 0:05:45]} Bd7 {[%emt 0:19:55]} 20. Qa3 {[%emt 0:18:43]} f4 {[%emt 0:23:57]} 21. Nc2 {[%emt 0:01:18]} f3 {[%emt 0:03:04]} 22. g3 {[%emt 0:11:13]} Be6 {[%emt 0:19:01]} 23. Rd1 {[%emt 0:09:14]} Ne7 {[%emt 0:12:01]} 24. Nce3 {[%emt 0:11:01]} Qc8 {[%emt 0:01:48]} 25. Qxd6 {[%emt 0:15:10]} Bxd5 {[%emt 0:07:37]} 26. Rxd5 {[%emt 0:02:41]} Nxd5 {[%emt 0:00:57]} 27. Qxe5+ {[%emt 0:01:53]} Bf6 {[%emt 0:03:45]} 28. Qxd5 {[%emt 0:00:06]} Rd8 {[%emt 0:01:06]} 29. Qf7 {[%emt 0:00:13]} Bg7 {[%emt 0:01:20]} 30. Qxf3 {[%emt 0:00:37]} Rd2 {[%emt 0:00:19]} 31. Rxa5 {[%emt 0:02:57]} Rdxb2 {[%emt 0:00:05]} 32. Ra7 {[%emt 0:02:20]} R2b7 {[%emt 0:01:38]} 33. Rxb7 {[%emt 0:03:10]} Qxb7 {[%emt 0:00:02]} 34. Nd5 {[%emt 0:01:24]} Re8 {[%emt 0:00:53]} 35. Kg2 {[%emt 0:00:31]} Qb2 {[%emt 0:00:28]} 36. Nf6 {[%emt 0:02:08]} Rf8 {[%emt 0:01:19]} 37. e5 {[%emt 0:00:05]} Qa3 {[%emt 0:00:09]} 38. Bd5 {[%emt 0:02:32]} Qe7 {[%emt 0:00:16]} 39. Qf4 {[%emt 0:01:38]} Bxf6 {[%emt 0:00:22]} 40. exf6 {[%emt 0:00:05]} Qxf6 {[%emt 0:01:12]} 41. Qxf6+ {[%emt 1:00:26]} Rxf6 {[%emt 1:00:05]} 42. h4 {[%emt 0:00:25]} Kg7 {[%emt 0:00:00]} 43. c4 {[%emt 0:00:00]} Ra6 {[%emt 0:00:00]} 44. g4 {[%emt 0:00:00]} h6 {[%emt 0:00:00]} 45. Kg3 {[%emt 0:00:00]} Ra2 {[%emt 0:00:00]} 46. Kf3 {[%emt 0:00:00]} Kf6 {[%emt 0:00:00]} 47. Ke3 {[%emt 0:00:00]} Ra3+ {[%emt 0:00:00]} 48. Kf4 {[%emt 0:00:00]} Rh3 {[%emt 0:00:00]} 49. g5+ {[%emt 0:00:00]} Kg7 {[%emt 0:00:00]} 50. gxh6+ {[%emt 0:00:00]} Kxh6 {[%emt 0:00:00]} 51. c5 {[%emt 0:00:00]} Rc3 {[%emt 0:00:00]} 52. c6 {[%emt 0:00:00]} Kh5 {[%emt 0:00:00]} 53. Ke5 {[%emt 0:00:00]} Kxh4 {[%emt 0:00:00]} 54. Kd6 {[%emt 0:00:00]} Kg4 {[%emt 0:00:00]} 55. c7 {[%emt 0:00:00]} Rxc7 {[%emt 0:00:00]} 56. Kxc7 {[%emt 0:00:00]} Kf4 {[%emt 0:00:00]} 57. Kd6 {[%emt 0:00:00]} g5 {[%emt 0:00:00]} 58. Bh1 {[%emt 0:00:00]} g4 {[%emt 0:00:00]} 59. Ke6 {[%emt 0:00:00]} 1-0

[Event "Fagernes GM-A 2019"]
[Site "Fagernes"]
[Date "2019.04.20"]
[Round "8.19"]
[White "Nordquelle, Daniel"]
[Black "Gronnestad, Anita"]
[Result "0-1"]
[ECO "B04"]
[WhiteElo "2264"]
[BlackElo "1954"]
[Annotator "NA"]
[PlyCount "70"]
[EventDate "2019.04.14"]
[EventType "tourn"]
[EventCountry "NOR"]
[SourceTitle "playchess.com"]
[Source "ChessBase"]
[SourceQuality "1"]
[TimeControl "40/7200:3600"]

1. e4 {[%emt 0:00:01]} Nf6 {[%emt 0:00:09]} 2. e5 {[%emt 0:00:12]} Nd5 {[%emt 0:00:06]} 3. d4 {[%emt 0:00:05]} d6 {[%emt 0:00:08]} 4. Nf3 {[%emt 0:00:06]} dxe5 {[%emt 0:00:15]} 5. Nxe5 {[%emt 0:00:20]} c6 {[%emt 0:00:12]} 6. c4 {[%emt 0:01:30]} Nf6 {[%emt 0:00:41]} 7. Nc3 {[%emt 0:00:13]} g6 {[%emt 0:03:57]} 8. Be3 {[%emt 0:00:38]} Nbd7 {[%emt 0:01:07]} 9. Nf3 {[%emt 0:00:57]} Ng4 {[%emt 0:04:40]} 10. Bf4 {[%emt 0:00:28]} Bg7 {[%emt 0:01:34]} 11. h3 {[%emt 0:00:38]} Ngf6 {[%emt 0:01:57]} 12. Qd2 {[%emt 0:01:05]} O-O {[%emt 0:03:04]} 13. Bd3 {[%emt 0:06:38]} Re8 {[%emt 0:01:28]} 14. O-O {[%emt 0:11:15]} Nf8 {[%emt 0:04:32]} 15. Rad1 {[%emt 0:01:07]} a6 {[%emt 0:08:49]} 16. a4 {[%emt 0:04:01]} Ne6 {[%emt 0:05:23]} 17. Be5 {[%emt 0:00:45]} Bd7 {[%emt 0:02:51]} 18. b4 {[%emt 0:13:58]} Nh5 {[%emt 0:25:00]} 19. Bxg7 {[%emt 0:00:46]} Kxg7 {[%emt 0:00:27]} 20. a5 {[%emt 0:00:35]} Nef4 {[%emt 0:01:35]} 21. Na4 {[%emt 0:11:07]} Nxd3 {[%emt 0:06:27]} 22. Qxd3 {[%emt 0:00:05]} Bf5 {[%emt 0:07:57]} 23. Qc3 {[%emt 0:02:15]} Nf4 {[%emt 0:06:54]} 24. Rfe1 {[%emt 0:03:25]} Qc7 {[%emt 0:03:12]} 25. Ne5 {[%emt 0:02:53]} f6 {[%emt 0:01:46]} 26. Nf3 {[%emt 0:02:33]} Rad8 {[%emt 0:00:57]} 27. Nc5 {[%emt 0:00:30]} e5 {[%emt 0:03:13]} 28. Kh1 {[%emt 0:13:29]} Qc8 {[%emt 0:04:34]} 29. dxe5 {[%emt 0:06:20]} Bxh3 {[%emt 0:02:38]} 30. exf6+ {[%emt 0:00:15]} Kh6 {[%emt 0:00:15]} 31. Qc1 {[%emt 0:31:35]} Bxg2+ {[%emt 0:00:26]} 32. Kg1 {[%emt 0:00:01]} Qg4 {[%emt 0:00:59]} 33. Nh2 {[%emt 0:00:01]} Qg5 {[%emt 0:00:45]} 34. Re3 {[%emt 0:00:08]} Rxe3 {[%emt 0:00:36]} 35. Qxe3 {[%emt 0:00:01]} Rxd1+ {[%emt 0:00:12]} 0-1

[Event "Fagernes GM-A 2019"]
[Site "Fagernes"]
[Date "2019.04.20"]
[Round "8.20"]
[White "Machlik, Edit"]
[Black "Skotheim, Andreas"]
[Result "1/2-1/2"]
[ECO "D35"]
[WhiteElo "2109"]
[BlackElo "2182"]
[Annotator "NA"]
[PlyCount "171"]
[EventDate "2019.04.14"]
[EventType "tourn"]
[EventCountry "NOR"]
[SourceTitle "playchess.com"]
[Source "ChessBase"]
[SourceQuality "1"]
[TimeControl "40/7200:3600"]

1. d4 {[%emt 0:00:01]} d5 {[%emt 0:00:13]} 2. c4 {[%emt 0:00:04]} e6 {[%emt 0:00:10]} 3. Nc3 {[%emt 0:01:16]} c6 {[%emt 0:00:10]} 4. cxd5 {[%emt 0:05:36]} exd5 {[%emt 0:01:51]} 5. Bf4 {[%emt 0:02:38]} Nf6 {[%emt 0:03:10]} 6. e3 {[%emt 0:01:55]} Bd6 {[%emt 0:02:08]} 7. Bg3 {[%emt 0:03:43]} O-O {[%emt 0:05:11]} 8. Bd3 {[%emt 0:05:49]} Qe7 {[%emt 0:04:32]} 9. Qc2 {[%emt 0:05:52]} Re8 {[%emt 0:07:52]} 10. Nf3 {[%emt 0:05:39]} Nbd7 {[%emt 0:02:04]} 11. Bxd6 {[%emt 0:13:15]} Qxd6 {[%emt 0:00:04]} 12. O-O {[%emt 0:00:10]} Nf8 {[%emt 0:04:16]} 13. a3 {[%emt 0:03:08]} a5 {[%emt 0:29:32]} 14. Rab1 {[%emt 0:06:05]} b5 {[%emt 0:06:59]} 15. a4 {[%emt 0:12:50]} b4 {[%emt 0:00:48]} 16. Ne2 {[%emt 0:00:29]} Ba6 {[%emt 0:01:40]} 17. Bxa6 {[%emt 0:05:58]} Rxa6 {[%emt 0:00:02]} 18. Rbc1 {[%emt 0:01:53]} N8d7 {[%emt 0:01:54]} 19. Nf4 {[%emt 0:03:51]} Rb8 {[%emt 0:04:29]} 20. b3 {[%emt 0:01:40]} Ne4 {[%emt 0:00:47]} 21. Ne2 {[%emt 0:08:01]} Rc8 {[%emt 0:03:09]} 22. Nd2 {[%emt 0:03:15]} f5 {[%emt 0:08:15]} 23. f3 {[%emt 0:01:22]} Nxd2 {[%emt 0:00:18]} 24. Qxd2 {[%emt 0:00:02]} Raa8 {[%emt 0:01:21]} 25. Nf4 {[%emt 0:02:29]} Rf8 {[%emt 0:01:27]} 26. Rc2 {[%emt 0:02:58]} g5 {[%emt 0:02:49]} 27. Nd3 {[%emt 0:00:02]} f4 {[%emt 0:00:32]} 28. exf4 {[%emt 0:01:06]} gxf4 {[%emt 0:00:01]} 29. Re1 {[%emt 0:01:35]} Qf6 {[%emt 0:00:18]} 30. Ne5 {[%emt 0:06:15]} Nxe5 {[%emt 0:00:02]} 31. dxe5 {[%emt 0:00:17]} Qe6 {[%emt 0:01:01]} 32. Qd4 {[%emt 0:01:33]} Rf5 {[%emt 0:00:46]} 33. Rce2 {[%emt 0:01:31]} Qe7 {[%emt 0:00:27]} 34. Rc1 {[%emt 0:01:29]} Re8 {[%emt 0:00:39]} 35. Rxc6 {[%emt 0:03:22]} Rxe5 {[%emt 0:00:06]} 36. Rxe5 {[%emt 0:00:12]} Qxe5 {[%emt 0:00:04]} 37. Qxe5 {[%emt 0:00:05]} Rxe5 {[%emt 0:00:06]} 38. Rc5 {[%emt 0:00:47]} Re3 {[%emt 0:00:36]} 39. Rxa5 {[%emt 0:01:23]} Rxb3 {[%emt 0:04:17]} 40. Rxd5 {[%emt 0:00:01]} Ra3 {[%emt 0:02:15]} 41. h4 {[%emt 0:10:44]} b3 {[%emt 0:36:05]} 42. Rb5 {[%emt 0:03:07]} Kf7 {[%emt 0:04:52]} 43. Kh2 {[%emt 0:04:19]} Kg6 {[%emt 0:03:20]} 44. h5+ {[%emt 0:13:46]} Kh6 {[%emt 0:04:03]} 45. Kh3 {[%emt 0:01:59]} Rxa4 {[%emt 0:03:31]} 46. Kg4 {[%emt 0:02:30]} Ra2 {[%emt 0:00:51]} 47. Rb6+ {[%emt 0:00:44]} Kg7 {[%emt 0:03:13]} 48. h6+ {[%emt 0:03:21]} Kf7 {[%emt 0:00:56]} 49. Rb7+ {[%emt 0:06:49]} Kf6 {[%emt 0:07:06]} 50. Rxb3 {[%emt 0:03:45]} Rxg2+ {[%emt 0:00:16]} 51. Kxf4 {[%emt 0:00:02]} Rg6 {[%emt 0:02:11]} 52. Rb6+ {[%emt 0:00:40]} Kf7 {[%emt 0:00:03]} 53. Rb7+ {[%emt 0:03:22]} Kg8 {[%emt 0:00:33]} 54. Rb8+ {[%emt 0:00:13]} Kf7 {[%emt 0:00:05]} 55. Rb7+ {[%emt 0:00:07]} Kg8 {[%emt 0:00:05]} 56. Kf5 {[%emt 0:00:16]} Rxh6 {[%emt 0:00:32]} 57. Rb8+ {[%emt 0:00:08]} Kf7 {[%emt 0:00:16]} 58. Rb7+ {[%emt 0:00:01]} Kf8 {[%emt 0:00:19]} 59. f4 {[%emt 0:00:04]} Rh5+ {[%emt 0:00:35]} 60. Kg4 {[%emt 0:00:15]} Rh1 {[%emt 0:00:13]} 61. Kg5 {[%emt 0:00:18]} Rg1+ {[%emt 0:00:23]} 62. Kf6 {[%emt 0:00:05]} Rg6+ {[%emt 0:00:03]} 63. Kf5 {[%emt 0:00:01]} Rh6 {[%emt 0:00:27]} 64. Rb8+ {[%emt 0:00:03]} Kf7 {[%emt 0:00:01]} 65. Rb7+ {[%emt 0:00:16]} Kf8 {[%emt 0:00:02]} 66. Ke5 {[%emt 0:00:22]} Rh1 {[%emt 0:00:09]} 67. f5 {[%emt 0:00:10]} Rh6 {[%emt 0:00:13]} 68. Ra7 {[%emt 0:00:03]} Rb6 {[%emt 0:00:13]} 69. Rxh7 {[%emt 0:00:27]} Ra6 {[%emt 0:00:06]} 70. Rb7 {[%emt 0:00:18]} Rc6 {[%emt 0:00:06]} 71. Kf4 {[%emt 0:00:26]} Ra6 {[%emt 0:00:10]} 72. Kg5 {[%emt 0:00:02]} Rc6 {[%emt 0:00:06]} 73. Ra7 {[%emt 0:00:17]} Rb6 {[%emt 0:00:02]} 74. Ra8+ {[%emt 0:00:16]} Kf7 {[%emt 0:00:03]} 75. Rh8 {[%emt 0:00:08]} Ra6 {[%emt 0:00:11]} 76. Rh7+ {[%emt 0:00:19]} Kf8 {[%emt 0:00:26]} 77. Rc7 {[%emt 0:00:06]} Rb6 {[%emt 0:00:02]} 78. Rc4 {[%emt 0:00:02]} Kf7 {[%emt 0:00:06]} 79. Ra4 {[%emt 0:00:03]} Rc6 {[%emt 0:00:02]} 80. Ra7+ {[%emt 0:00:08]} Kf8 {[%emt 0:00:01]} 81. f6 {[%emt 0:00:04]} Rc1 {[%emt 0:00:02]} 82. Ra8+ {[%emt 0:00:02]} Kf7 {[%emt 0:00:01]} 83. Ra7+ {[%emt 0:00:01]} Kf8 {[%emt 0:00:02]} 84. Kf5 {[%emt 0:00:06]} Rf1+ {[%emt 0:00:02]} 85. Ke6 {[%emt 0:00:01]} Re1+ {[%emt 0:00:02]} 86. Kf5 {[%emt 0:00:01]} 1/2-1/2

[Event "Fagernes GM-A 2019"]
[Site "Fagernes"]
[Date "2019.04.21"]
[Round "9.1"]
[White "Turov, Maxim"]
[Black "Demchenko, Anton"]
[Result "1/2-1/2"]
[ECO "B07"]
[WhiteElo "2584"]
[BlackElo "2661"]
[Annotator "ChessBase"]
[PlyCount "37"]
[EventDate "2019.04.14"]
[EventType "tourn"]
[EventCountry "NOR"]
[SourceTitle "playchess.com"]
[Source "ChessBase"]
[SourceQuality "1"]
[TimeControl "40/7200:3600"]

1. d4 {[%emt 0:00:06]} Nf6 {[%emt 0:00:11]} 2. Nf3 {[%emt 0:00:06]} g6 {[%emt 0:00:07]} 3. g3 {[%emt 0:00:03]} Bg7 {[%emt 0:00:05]} 4. Bg2 {[%emt 0:00:04]} O-O {[%emt 0:00:07]} 5. O-O {[%emt 0:00:04]} d6 {[%emt 0:00:09]} 6. Re1 {[%emt 0:00:05]} Nbd7 {[%emt 0:02:55]} 7. e4 {[%emt 0:00:57]} e5 {[%emt 0:00:33]} 8. Nc3 {[%emt 0:00:29]} b6 {[%emt 0:02:05]} 9. d5 {[%emt 0:02:10]} a5 {[%emt 0:03:58]} 10. Nd2 {[%emt 0:04:28]} Nc5 {[%emt 0:06:03]} 11. Nc4 {[%emt 0:02:32]} Ba6 {[%emt 0:06:28]} 12. Bf1 {[%emt 0:03:50]} Qd7 {[%emt 0:04:18]} 13. a3 {[%emt 0:12:30]} h5 {[%emt 0:08:30]} 14. f3 {[%emt 0:20:08]} Nh7 {[%emt 0:05:35]} 15. Bd2 {[%emt 0:22:36]} Qd8 {[%emt 0:23:16]} 16. b4 {[%emt 0:04:13]} Nd7 {[%emt 0:00:17]} 17. bxa5 {[%emt 0:02:42]} Bxc4 {[%emt 0:00:19]} 18. Bxc4 {[%emt 0:00:58]} Rxa5 {[%emt 0:00:09]} 19. a4 {[%emt 0:04:01]} 1/2-1/2

[Event "Fagernes GM-A 2019"]
[Site "Fagernes"]
[Date "2019.04.21"]
[Round "9.2"]
[White "Postny, Evgeny"]
[Black "Urkedal, Frode Olav Olsen"]
[Result "1-0"]
[ECO "D37"]
[WhiteElo "2612"]
[BlackElo "2513"]
[Annotator "ChessBase"]
[PlyCount "188"]
[EventDate "2019.04.14"]
[EventType "tourn"]
[EventCountry "NOR"]
[SourceTitle "playchess.com"]
[Source "ChessBase"]
[SourceQuality "1"]
[TimeControl "40/7200:3600"]

1. Nf3 {[%emt 0:01:31]} Nf6 {[%emt 0:04:35]} 2. c4 {[%emt 0:00:05]} e6 {[%emt 0:02:19]} 3. Nc3 {[%emt 0:00:08]} d5 {[%emt 0:00:04]} 4. d4 {[%emt 0:00:07]} Be7 {[%emt 0:00:09]} 5. Bf4 {[%emt 0:00:12]} O-O {[%emt 0:00:17]} 6. e3 {[%emt 0:00:11]} Nbd7 {[%emt 0:01:01]} 7. c5 {[%emt 0:00:14]} c6 {[%emt 0:00:06]} 8. h3 {[%emt 0:00:38]} b6 {[%emt 0:00:09]} 9. b4 {[%emt 0:00:07]} a5 {[%emt 0:00:22]} 10. a3 {[%emt 0:00:08]} Bb7 {[%emt 0:00:05]} 11. Bd3 {[%emt 0:00:35]} Qc8 {[%emt 0:00:25]} 12. O-O {[%emt 0:00:53]} Ba6 {[%emt 0:00:07]} 13. Qc2 {[%emt 0:01:53]} Bxd3 {[%emt 0:01:21]} 14. Qxd3 {[%emt 0:00:05]} Qb7 {[%emt 0:00:22]} 15. Rfc1 {[%emt 0:09:36]} Rfc8 {[%emt 0:01:02]} 16. Nd2 {[%emt 0:10:03]} Nf8 {[%emt 0:11:30]} 17. Rcb1 {[%emt 0:07:06]} N6d7 {[%emt 0:07:59]} 18. Qc2 {[%emt 0:08:44]} axb4 {[%emt 0:05:59]} 19. axb4 {[%emt 0:00:27]} Ng6 {[%emt 0:00:07]} 20. Bg3 {[%emt 0:02:57]} e5 {[%emt 0:01:20]} 21. Rxa8 {[%emt 0:05:18]} Rxa8 {[%emt 0:02:51]} 22. Nb3 {[%emt 0:03:06]} exd4 {[%emt 0:02:54]} 23. Nxd4 {[%emt 0:00:26]} bxc5 {[%emt 0:03:00]} 24. bxc5 {[%emt 0:02:05]} Qa6 {[%emt 0:01:03]} 25. Bd6 {[%emt 0:05:09]} Bf8 {[%emt 0:14:01]} 26. Nce2 {[%emt 0:05:05]} Nge5 {[%emt 0:12:01]} 27. Bxf8 {[%emt 0:07:27]} Rxf8 {[%emt 0:01:53]} 28. Nb3 {[%emt 0:15:22]} Rb8 {[%emt 0:06:39]} 29. Ned4 {[%emt 0:00:36]} g6 {[%emt 0:05:29]} 30. Ra1 {[%emt 0:04:14]} Qc4 {[%emt 0:02:57]} 31. Rc1 {[%emt 0:00:19]} Qa6 {[%emt 0:02:11]} 32. Qc3 {[%emt 0:02:11]} Nd3 {[%emt 0:07:17]} 33. Rd1 {[%emt 0:03:50]} Nb4 {[%emt 0:03:06]} 34. Qd2 {[%emt 0:04:34]} Ne5 {[%emt 0:03:53]} 35. Ra1 {[%emt 0:01:46]} Qd3 {[%emt 0:03:49]} 36. Qxd3 {[%emt 0:00:24]} Nbxd3 {[%emt 0:00:17]} 37. Ra6 {[%emt 0:04:10]} Nb4 {[%emt 0:01:35]} 38. Ra7 {[%emt 0:00:31]} Ned3 {[%emt 0:04:23]} 39. Rc7 {[%emt 0:02:02]} Nc2 {[%emt 0:00:20]} 40. Na5 {[%emt 0:03:17]} Rb1+ {[%emt 0:00:29]} 41. Kh2 {[%emt 1:00:02]} Nxd4 {[%emt 0:10:39]} 42. exd4 {[%emt 0:00:00]} Nb4 {[%emt 0:04:49]} 43. Rb7 {[%emt 0:00:00]} Ra1 {[%emt 0:00:22]} 44. Rxb4 {[%emt 0:00:00]} Rxa5 {[%emt 0:00:05]} 45. Kg3 {[%emt 0:00:00]} Ra8 {[%emt 0:07:03]} 46. Kf4 {[%emt 0:00:00]} Re8 {[%emt 0:01:37]} 47. f3 {[%emt 0:00:00]} h6 {[%emt 0:07:55]} 48. h4 {[%emt 0:00:00]} Re6 {[%emt 0:05:26]} 49. Rb7 {[%emt 0:00:00]} Kg7 {[%emt 0:00:42]} 50. Rc7 {[%emt 0:00:00]} Kf6 {[%emt 0:00:54]} 51. Kg4 {[%emt 0:00:00]} Kg7 {[%emt 0:00:23]} 52. h5 {[%emt 0:00:00]} gxh5+ {[%emt 0:03:06]} 53. Kxh5 {[%emt 0:00:00]} Rg6 {[%emt 0:02:52]} 54. g4 {[%emt 0:00:00]} Rf6 {[%emt 0:00:15]} 55. g5 {[%emt 0:00:00]} hxg5 {[%emt 0:00:23]} 56. Kxg5 {[%emt 0:00:00]} Rxf3 {[%emt 0:01:10]} 57. Rxc6 {[%emt 0:00:00]} Rd3 {[%emt 0:00:17]} 58. Kf5 {[%emt 0:00:00]} Rxd4 {[%emt 0:00:37]} 59. Ke5 {[%emt 0:00:00]} Rd1 {[%emt 0:02:41]} 60. Rd6 {[%emt 0:00:00]} Kf8 {[%emt 0:03:36]} 61. c6 {[%emt 0:00:00]} Re1+ {[%emt 0:02:03]} 62. Kxd5 {[%emt 0:00:00]} Rd1+ {[%emt 0:01:11]} 63. Kc5 {[%emt 0:00:00]} Rc1+ {[%emt 0:00:04]} 64. Kb6 {[%emt 0:00:00]} Rb1+ {[%emt 0:00:07]} 65. Kc7 {[%emt 0:00:00]} Ke7 {[%emt 0:00:01]} 66. Rd5 {[%emt 0:00:00]} f6 {[%emt 0:00:09]} 67. Kc8 {[%emt 0:00:00]} Rc1 {[%emt 0:00:24]} 68. c7 {[%emt 0:00:00]} Ke6 {[%emt 0:00:03]} 69. Rb5 {[%emt 0:00:00]} Kd6 {[%emt 0:00:09]} 70. Rb6+ {[%emt 0:00:00]} Ke5 {[%emt 0:00:01]} 71. Kd7 {[%emt 0:00:00]} Rxc7+ {[%emt 0:00:21]} 72. Kxc7 {[%emt 0:00:00]} f5 {[%emt 0:00:02]} 73. Rb5+ {[%emt 0:00:00]} Ke4 {[%emt 0:00:00]} 74. Kd6 {[%emt 0:00:00]} f4 {[%emt 0:00:03]} 75. Rb4+ {[%emt 0:00:00]} Ke3 {[%emt 0:00:00]} 76. Ke5 {[%emt 0:00:00]} f3 {[%emt 0:00:08]} 77. Rb3+ {[%emt 0:00:00]} Ke2 {[%emt 0:00:03]} 78. Rb2+ {[%emt 0:00:00]} Ke3 {[%emt 0:00:23]} 79. Rb3+ {[%emt 0:00:00]} Ke2 {[%emt 0:00:01]} 80. Ke4 {[%emt 0:00:00]} f2 {[%emt 0:00:01]} 81. Rb2+ {[%emt 0:00:00]} Ke1 {[%emt 0:00:03]} 82. Rb1+ {[%emt 0:00:00]} Ke2 {[%emt 0:00:01]} 83. Rb2+ {[%emt 0:00:01]} Ke1 {[%emt 0:00:01]} 84. Ke3 {[%emt 0:00:04]} f1=N+ {[%emt 0:00:03]} 85. Kd3 {[%emt 0:00:01]} Ng3 {[%emt 0:00:07]} 86. Rg2 {[%emt 0:00:06]} Nf1 {[%emt 0:00:03]} 87. Re2+ {[%emt 0:00:01]} Kd1 {[%emt 0:00:02]} 88. Ra2 {[%emt 0:00:04]} Ke1 {[%emt 0:00:00]} 89. Rg2 {[%emt 0:00:00]} Kd1 {[%emt 0:00:00]} 90. Re2 {[%emt 0:00:00]} Ng3 {[%emt 0:00:00]} 91. Ra2 {[%emt 0:00:00]} Ke1 {[%emt 0:00:00]} 92. Ke3 {[%emt 0:00:00]} Nf1+ {[%emt 0:00:00]} 93. Ke4 {[%emt 0:00:00]} Nd2+ {[%emt 0:00:00]} 94. Kd3 {[%emt 0:00:00]} Nf3 {[%emt 0:00:00]} 1-0

[Event "Fagernes GM-A 2019"]
[Site "Fagernes"]
[Date "2019.04.21"]
[Round "9.4"]
[White "Vovk, Andriy"]
[Black "Vorobiov, Evgeny E."]
[Result "1/2-1/2"]
[ECO "B35"]
[WhiteElo "2616"]
[BlackElo "2565"]
[Annotator "ChessBase"]
[PlyCount "82"]
[EventDate "2019.04.14"]
[EventType "tourn"]
[EventCountry "NOR"]
[SourceTitle "playchess.com"]
[Source "ChessBase"]
[SourceQuality "1"]
[TimeControl "40/7200:3600"]

1. e4 {[%emt 0:09:38]} c5 {[%emt 0:00:02]} 2. Nf3 {[%emt 0:00:10]} Nc6 {[%emt 0:00:06]} 3. d4 {[%emt 0:00:46]} cxd4 {[%emt 0:00:07]} 4. Nxd4 {[%emt 0:00:05]} g6 {[%emt 0:00:10]} 5. Nc3 {[%emt 0:08:46]} Bg7 {[%emt 0:00:14]} 6. Be3 {[%emt 0:00:04]} Nf6 {[%emt 0:00:05]} 7. Bc4 {[%emt 0:00:11]} O-O {[%emt 0:00:07]} 8. Bb3 {[%emt 0:00:06]} Re8 {[%emt 0:00:43]} 9. f3 {[%emt 0:03:29]} e6 {[%emt 0:00:07]} 10. f4 {[%emt 0:00:51]} d6 {[%emt 0:00:23]} 11. Ndb5 {[%emt 0:01:07]} Bf8 {[%emt 0:17:42]} 12. Qf3 {[%emt 0:00:57]} a6 {[%emt 0:08:00]} 13. Nd4 {[%emt 0:00:26]} Na5 {[%emt 0:00:18]} 14. O-O {[%emt 0:03:35]} b5 {[%emt 0:04:46]} 15. f5 {[%emt 0:05:24]} exf5 {[%emt 0:12:30]} 16. Bg5 {[%emt 0:06:51]} Nxb3 {[%emt 0:03:28]} 17. axb3 {[%emt 0:03:15]} Bb7 {[%emt 0:03:12]} 18. Nxf5 {[%emt 0:04:33]} gxf5 {[%emt 0:03:04]} 19. Qxf5 {[%emt 0:00:26]} Bg7 {[%emt 0:05:38]} 20. Bxf6 {[%emt 0:01:06]} Qxf6 {[%emt 0:00:45]} 21. Qxf6 {[%emt 0:00:09]} Bxf6 {[%emt 0:00:03]} 22. Rxf6 {[%emt 0:00:05]} b4 {[%emt 0:00:44]} 23. Ne2 {[%emt 0:03:34]} Rxe4 {[%emt 0:02:24]} 24. Ng3 {[%emt 0:04:03]} Re6 {[%emt 0:07:39]} 25. Rf2 {[%emt 0:11:58]} Rc8 {[%emt 0:03:06]} 26. Nf5 {[%emt 0:04:49]} Be4 {[%emt 0:05:40]} 27. Nd4 {[%emt 0:07:38]} Re5 {[%emt 0:00:18]} 28. Rxa6 {[%emt 0:07:25]} Rd5 {[%emt 0:00:15]} 29. Rd2 {[%emt 0:01:09]} Rxc2 {[%emt 0:03:46]} 30. Rxc2 {[%emt 0:01:34]} Bxc2 {[%emt 0:00:06]} 31. Nxc2 {[%emt 0:00:02]} Rd1+ {[%emt 0:00:06]} 32. Kf2 {[%emt 0:00:09]} Rd2+ {[%emt 0:00:05]} 33. Kf3 {[%emt 0:00:06]} Rxc2 {[%emt 0:00:05]} 34. Rxd6 {[%emt 0:02:31]} Rxb2 {[%emt 0:00:07]} 35. Rd3 {[%emt 0:00:03]} Kg7 {[%emt 0:00:42]} 36. h3 {[%emt 0:01:15]} h5 {[%emt 0:01:09]} 37. g3 {[%emt 0:04:38]} Kg6 {[%emt 0:01:47]} 38. Ke4 {[%emt 0:01:13]} f6 {[%emt 0:01:57]} 39. Kf4 {[%emt 0:06:44]} Rf2+ {[%emt 0:01:17]} 40. Ke3 {[%emt 0:00:57]} Rg2 {[%emt 0:01:15]} 41. Kf4 {[%emt 1:00:38]} Rf2+ {[%emt 1:00:11]} 1/2-1/2